[Event "16th EWICC 2015"]
[Site "Kutaisi"]
[Date "2015.06.01"]
[Round "3"]
[White "Petrenko, Svetlana"]
[Black "Schleining, Zoya"]
[Result "0-1"]
[ECO "A06"]
[WhiteElo "2207"]
[BlackElo "2375"]
[Annotator "Robot 11"]
[PlyCount "84"]
[EventDate "2015.??.??"]
[EventCountry "GEO"]
[TimeControl "900+10"]

1. Nf3 {[%emt 0:00:01]} d5 {[%emt 0:00:08]} 2. g3 {[%emt 0:00:02]} Nf6 {[%emt
0:00:13]} 3. Bg2 {[%emt 0:00:02]} c5 {[%emt 0:00:05]} 4. O-O {[%emt 0:00:03]}
e6 {[%emt 0:00:03]} 5. b3 {[%emt 0:00:13]} Nc6 {[%emt 0:00:26]} 6. Bb2 {[%emt
0:00:03]} Bd6 {[%emt 0:00:06]} 7. d4 {[%emt 0:00:28]} O-O {[%emt 0:00:31]} 8.
e3 {[%emt 0:00:07]} Qc7 {[%emt 0:00:24]} 9. Na3 {[%emt 0:00:16]} a6 {[%emt 0:
00:06]} 10. c4 {[%emt 0:00:03]} cxd4 {[%emt 0:00:24]} 11. exd4 {[%emt 0:00:07]}
b6 {[%emt 0:01:13]} 12. Re1 {[%emt 0:00:47]} Bb7 {[%emt 0:00:11]} 13. Rc1 {
[%emt 0:00:35]} Rfd8 {[%emt 0:00:45]} 14. Qe2 {[%emt 0:00:40]} Bxa3 {[%emt 0:
01:58]} 15. Bxa3 {[%emt 0:00:01]} dxc4 {[%emt 0:00:05]} 16. Qxc4 {[%emt 0:01:
12]} Rac8 {[%emt 0:00:46]} 17. Qe2 {[%emt 0:00:47]} Qb8 {[%emt 0:00:46]} 18.
Bb2 {[%emt 0:01:14]} Qa8 {[%emt 0:01:12]} 19. a3 {[%emt 0:00:50]} h6 {[%emt 0:
00:09]} 20. b4 {[%emt 0:00:05]} Ne7 {[%emt 0:00:12]} 21. Nh4 {[%emt 0:00:15]}
Bxg2 {[%emt 0:00:05]} 22. Nxg2 {[%emt 0:00:02]} Nf5 {[%emt 0:00:13]} 23. Rxc8 {
[%emt 0:00:35]} Rxc8 {[%emt 0:00:08]} 24. Nf4 {[%emt 0:00:54]} b5 {[%emt 0:01:
50]} 25. Qd3 {[%emt 0:00:32]} Nd5 {[%emt 0:00:09]} 26. Ng2 {[%emt 0:00:42]} Rc4
{[%emt 0:00:10]} 27. g4 {[%emt 0:00:28]} Nfe7 {[%emt 0:00:15]} 28. f3 {[%emt 0:
01:40]} Qc6 {[%emt 0:00:10]} 29. Qe4 {[%emt 0:01:10]} Rc2 {[%emt 0:00:11]} 30.
Re2 {[%emt 0:00:28]} Rxb2 {[%emt 0:00:32]} 31. Rxb2 {[%emt 0:00:25]} Qc1+ {
[%emt 0:00:02]} 32. Ne1 {[%emt 0:00:40]} Qxb2 {[%emt 0:00:02]} 33. Nc2 {[%emt
0:00:08]} Qc1+ {[%emt 0:00:16]} 34. Kf2 {[%emt 0:00:48]} Qd2+ {[%emt 0:00:12]}
35. Qe2 {[%emt 0:00:13]} Qxe2+ {[%emt 0:00:06]} 36. Kxe2 {[%emt 0:00:02]} Nf4+
{[%emt 0:00:16]} 37. Kd2 {[%emt 0:00:32]} Ned5 {[%emt 0:00:09]} 38. Na1 {[%emt
0:00:03]} Nb6 {[%emt 0:00:06]} 39. Ke3 {[%emt 0:01:19]} Nfd5+ {[%emt 0:00:03]}
40. Kd3 {[%emt 0:00:07]} Nc4 {[%emt 0:00:06]} 41. Nc2 {[%emt 0:00:02]} g5 {
[%emt 0:00:18]} 42. Ke4 {[%emt 0:00:15]} Kf8 {[%emt 0:00:33]} 0-1

[Event "16th EWICC 2015"]
[Site "Kutaisi"]
[Date "2015.06.01"]
[Round "3"]
[White "Tedoshvili, Ana"]
[Black "Donghvani, Nia"]
[Result "1-0"]
[ECO "D02"]
[WhiteElo "1805"]
[BlackElo "1444"]
[Annotator "Robot 11"]
[PlyCount "95"]
[EventDate "2015.??.??"]
[EventCountry "GEO"]
[TimeControl "900+10"]

1. d4 {[%emt 0:00:02]} d5 {[%emt 0:00:01]} 2. Nf3 {[%emt 0:00:01]} Nf6 {[%emt
0:00:02]} 3. g3 {[%emt 0:00:12]} g6 {[%emt 0:00:12]} 4. Bg2 {[%emt 0:00:01]}
Bg7 {[%emt 0:00:01]} 5. O-O {[%emt 0:00:01]} O-O {[%emt 0:00:01]} 6. Nbd2 {
[%emt 0:00:07]} Nc6 {[%emt 0:00:11]} 7. e3 {[%emt 0:00:02]} Bg4 {[%emt 0:00:17]
} 8. c4 {[%emt 0:00:09]} dxc4 {[%emt 0:00:51]} 9. Nxc4 {[%emt 0:00:06]} Qc8 {
[%emt 0:00:02]} 10. Re1 {[%emt 0:00:09]} Bh3 {[%emt 0:01:30]} 11. Bh1 {[%emt 0:
00:01]} Bg4 {[%emt 0:00:14]} 12. Qc2 {[%emt 0:00:04]} Qd7 {[%emt 0:01:06]} 13.
Nce5 {[%emt 0:00:21]} Nxe5 {[%emt 0:01:26]} 14. Nxe5 {[%emt 0:00:06]} Qb5 {
[%emt 0:00:40]} 15. a4 {[%emt 0:01:34]} Qb6 {[%emt 0:01:01]} 16. a5 {[%emt 0:
00:21]} Qb5 {[%emt 0:01:39]} 17. Nxg4 {[%emt 0:00:36]} Nxg4 {[%emt 0:00:17]}
18. h3 {[%emt 0:00:01]} Nf6 {[%emt 0:00:20]} 19. Qxc7 {[%emt 0:00:41]} Qb4 {
[%emt 0:00:49]} 20. Rf1 {[%emt 0:00:28]} Rab8 {[%emt 0:00:54]} 21. Qc3 {[%emt
0:00:43]} Qd6 {[%emt 0:00:08]} 22. b3 {[%emt 0:00:18]} Qe6 {[%emt 0:00:17]} 23.
Bg2 {[%emt 0:00:07]} Rfc8 {[%emt 0:00:26]} 24. Qd3 {[%emt 0:00:08]} Nd5 {[%emt
0:00:22]} 25. e4 {[%emt 0:00:35]} Nb4 {[%emt 0:00:34]} 26. Qd2 {[%emt 0:00:42]}
Qxb3 {[%emt 0:01:30]} 27. Ra3 {[%emt 0:00:19]} Qc4 {[%emt 0:01:37]} 28. Ra4 {
[%emt 0:01:47]} Qxd4 {[%emt 0:02:53]} 29. Rxb4 {[%emt 0:00:13]} Qc5 {[%emt 0:
00:14]} 30. Rb1 {[%emt 0:00:23]} Rd8 {[%emt 0:00:12]} 31. Qb4 {[%emt 0:00:04]}
Qc2 {[%emt 0:00:10]} 32. Be3 {[%emt 0:00:09]} a6 {[%emt 0:00:10]} 33. Qxe7 {
[%emt 0:00:06]} Qc3 {[%emt 0:00:06]} 34. Rbc1 {[%emt 0:00:09]} Qxa5 {[%emt 0:
00:03]} 35. Rc7 {[%emt 0:00:00]} Rf8 {[%emt 0:00:10]} 36. Rxb7 {[%emt 0:00:04]}
Rxb7 {[%emt 0:00:01]} 37. Qxb7 {[%emt 0:00:02]} Qa2 {[%emt 0:00:07]} 38. Bc5 {
[%emt 0:00:03]} Re8 {[%emt 0:00:03]} 39. Qc6 {[%emt 0:00:25]} Rd8 {[%emt 0:00:
22]} 40. Be7 {[%emt 0:00:02]} Rb8 {[%emt 0:00:05]} 41. Qd6 {[%emt 0:00:07]} Rc8
{[%emt 0:00:11]} 42. Qd7 {[%emt 0:00:01]} Qc4 {[%emt 0:00:05]} 43. Qb7 {[%emt
0:00:16]} a5 {[%emt 0:00:11]} 44. Bd6 {[%emt 0:00:06]} a4 {[%emt 0:00:10]} 45.
e5 {[%emt 0:00:05]} Bf8 {[%emt 0:00:20]} 46. Bd5 {[%emt 0:00:03]} Qc2 {[%emt 0:
00:24]} 47. Qxf7+ {[%emt 0:00:04]} Kh8 {[%emt 0:00:02]} 48. Bxf8 {[%emt 0:00:
03]} 1-0

[Event "16th EWICC 2015"]
[Site "Kutaisi"]
[Date "2015.06.01"]
[Round "3"]
[White "Tereladze, Sopiko"]
[Black "Javakhishvili, Lela"]
[Result "0-1"]
[ECO "E21"]
[WhiteElo "2128"]
[BlackElo "2472"]
[Annotator "Robot 11"]
[PlyCount "58"]
[EventDate "2015.??.??"]
[EventCountry "GEO"]
[TimeControl "900+10"]

1. d4 {[%emt 0:00:02]} Nf6 {[%emt 0:00:02]} 2. c4 {[%emt 0:00:01]} e6 {[%emt 0:
00:02]} 3. Nf3 {[%emt 0:00:03]} b6 {[%emt 0:00:03]} 4. Nc3 {[%emt 0:00:05]} Bb4
{[%emt 0:00:11]} 5. g3 {[%emt 0:00:20]} Bb7 {[%emt 0:00:22]} 6. Bg2 {[%emt 0:
00:02]} Ne4 {[%emt 0:02:12]} 7. Qc2 {[%emt 0:00:18]} Nxc3 {[%emt 0:00:09]} 8.
bxc3 {[%emt 0:00:02]} Be7 {[%emt 0:00:02]} 9. O-O {[%emt 0:00:46]} d6 {[%emt 0:
00:06]} 10. c5 {[%emt 0:03:28]} dxc5 {[%emt 0:00:34]} 11. dxc5 {[%emt 0:00:00]}
Bxc5 {[%emt 0:00:16]} 12. Bg5 {[%emt 0:00:02]} f6 {[%emt 0:02:35]} 13. Rfd1 {
[%emt 0:00:01]} Qe7 {[%emt 0:00:35]} 14. Ne5 {[%emt 0:02:50]} Bxg2 {[%emt 0:00:
45]} 15. Qa4+ {[%emt 0:00:41]} b5 {[%emt 0:02:00]} 16. Qxb5+ {[%emt 0:01:02]}
c6 {[%emt 0:00:01]} 17. Qa4 {[%emt 0:01:49]} fxg5 {[%emt 0:01:59]} 18. Kxg2 {
[%emt 0:00:01]} O-O {[%emt 0:00:04]} 19. f3 {[%emt 0:00:01]} Bd6 {[%emt 0:00:
59]} 20. Nc4 {[%emt 0:01:22]} Bc7 {[%emt 0:00:09]} 21. Rab1 {[%emt 0:00:22]}
Nd7 {[%emt 0:00:35]} 22. Rb7 {[%emt 0:00:20]} Nc5 {[%emt 0:00:32]} 23. Qa3 {
[%emt 0:00:18]} g4 {[%emt 0:01:49]} 24. f4 {[%emt 0:00:53]} Rac8 {[%emt 0:00:
35]} 25. Ne5 {[%emt 0:00:19]} Rfe8 {[%emt 0:00:54]} 26. Nxc6 {[%emt 0:00:19]}
Qf8 {[%emt 0:00:01]} 27. Nxa7 {[%emt 0:00:05]} Nxb7 {[%emt 0:00:03]} 28. Qxf8+
{[%emt 0:00:26]} Kxf8 {[%emt 0:00:06]} 29. Rd7 {[%emt 0:00:14]} Nc5 {[%emt 0:
00:05]} 0-1

[Event "16th EWICC 2015"]
[Site "Kutaisi"]
[Date "2015.06.01"]
[Round "4"]
[White "Dordzhieva, Dinara"]
[Black "Lomineishvili, Maia"]
[Result "0-1"]
[ECO "A09"]
[WhiteElo "2242"]
[BlackElo "2364"]
[Annotator "Robot 11"]
[PlyCount "66"]
[EventDate "2015.??.??"]
[EventCountry "GEO"]
[TimeControl "900+10"]

1. Nf3 {[%emt 0:00:01]} d5 {[%emt 0:00:01]} 2. c4 {[%emt 0:00:07]} d4 {[%emt 0:
00:04]} 3. b4 {[%emt 0:00:02]} a5 {[%emt 0:00:06]} 4. b5 {[%emt 0:00:56]} c5 {
[%emt 0:00:03]} 5. e3 {[%emt 0:00:19]} Bg4 {[%emt 0:00:34]} 6. h3 {[%emt 0:01:
00]} Bh5 {[%emt 0:00:10]} 7. Bb2 {[%emt 0:00:19]} dxe3 {[%emt 0:00:23]} 8. fxe3
{[%emt 0:00:05]} Qd6 {[%emt 0:01:04]} 9. Qe2 {[%emt 0:00:42]} Nf6 {[%emt 0:00:
19]} 10. Nc3 {[%emt 0:00:23]} Nbd7 {[%emt 0:00:36]} 11. g4 {[%emt 0:01:07]} Bg6
{[%emt 0:00:28]} 12. d3 {[%emt 0:00:01]} O-O-O {[%emt 0:02:10]} 13. O-O-O {
[%emt 0:00:43]} Nb6 {[%emt 0:00:29]} 14. Bg2 {[%emt 0:01:02]} Bxd3 {[%emt 0:00:
35]} 15. Qf2 {[%emt 0:01:02]} Nxc4 {[%emt 0:00:21]} 16. g5 {[%emt 0:03:55]}
Nxb2 {[%emt 0:01:20]} 17. Qxb2 {[%emt 0:02:06]} Nh5 {[%emt 0:00:02]} 18. b6 {
[%emt 0:00:26]} c4 {[%emt 0:00:22]} 19. Ne1 {[%emt 0:00:57]} e6 {[%emt 0:00:37]
} 20. Nxd3 {[%emt 0:01:27]} cxd3 {[%emt 0:00:02]} 21. Bf3 {[%emt 0:00:08]} Ng3
{[%emt 0:00:29]} 22. Rhg1 {[%emt 0:00:01]} Nf5 {[%emt 0:00:37]} 23. Be4 {[%emt
0:00:11]} Qa3 {[%emt 0:01:04]} 24. Rxd3 {[%emt 0:01:10]} Rxd3 {[%emt 0:00:09]}
25. Bxd3 {[%emt 0:00:01]} Nxe3 {[%emt 0:00:17]} 26. Qxa3 {[%emt 0:00:40]} Bxa3+
{[%emt 0:00:02]} 27. Kd2 {[%emt 0:00:00]} Rd8 {[%emt 0:01:01]} 28. Nb5 {[%emt
0:00:18]} Bb4+ {[%emt 0:01:07]} 29. Ke2 {[%emt 0:00:01]} Nd5 {[%emt 0:00:11]}
30. Rf1 {[%emt 0:00:17]} Rd7 {[%emt 0:00:38]} 31. a3 {[%emt 0:00:23]} Bc5 {
[%emt 0:00:22]} 32. Rc1 {[%emt 0:00:06]} Nf4+ {[%emt 0:00:01]} 33. Kf1 {[%emt
0:00:11]} Nxd3 {[%emt 0:00:02]} 0-1

[Event "16th EWICC 2015"]
[Site "Kutaisi"]
[Date "2015.06.01"]
[Round "4"]
[White "Gevorgyan, Maria"]
[Black "Esadze, Tamar"]
[Result "1-0"]
[ECO "B24"]
[WhiteElo "2190"]
[BlackElo "1697"]
[Annotator "Robot 11"]
[PlyCount "87"]
[EventDate "2015.??.??"]
[EventCountry "GEO"]
[TimeControl "900+10"]

1. e4 {[%emt 0:00:02]} c5 {[%emt 0:00:01]} 2. Nc3 {[%emt 0:00:02]} Nc6 {[%emt
0:00:01]} 3. Bb5 {[%emt 0:00:01]} d6 {[%emt 0:00:08]} 4. Bxc6+ {[%emt 0:00:02]}
bxc6 {[%emt 0:00:01]} 5. d3 {[%emt 0:00:01]} Nf6 {[%emt 0:00:04]} 6. h3 {[%emt
0:00:03]} e6 {[%emt 0:00:03]} 7. Nge2 {[%emt 0:00:10]} Be7 {[%emt 0:00:02]} 8.
Be3 {[%emt 0:00:17]} O-O {[%emt 0:00:04]} 9. Qd2 {[%emt 0:00:17]} Rb8 {[%emt 0:
00:05]} 10. b3 {[%emt 0:00:04]} d5 {[%emt 0:00:10]} 11. Bf4 {[%emt 0:00:37]}
Rb7 {[%emt 0:00:33]} 12. Rd1 {[%emt 0:00:25]} dxe4 {[%emt 0:00:48]} 13. dxe4 {
[%emt 0:00:05]} Rd7 {[%emt 0:00:03]} 14. Qc1 {[%emt 0:00:15]} Rxd1+ {[%emt 0:
00:21]} 15. Qxd1 {[%emt 0:00:01]} Qxd1+ {[%emt 0:01:23]} 16. Kxd1 {[%emt 0:00:
01]} Rd8+ {[%emt 0:00:04]} 17. Kc1 {[%emt 0:00:29]} Ba6 {[%emt 0:00:15]} 18. f3
{[%emt 0:00:13]} c4 {[%emt 0:00:48]} 19. Kb2 {[%emt 0:00:01]} cxb3 {[%emt 0:00:
39]} 20. axb3 {[%emt 0:00:02]} Bc5 {[%emt 0:00:46]} 21. Ra1 {[%emt 0:00:14]}
Bxe2 {[%emt 0:00:41]} 22. Nxe2 {[%emt 0:00:01]} Nh5 {[%emt 0:01:07]} 23. Bc1 {
[%emt 0:00:15]} g6 {[%emt 0:00:55]} 24. g4 {[%emt 0:01:24]} Ng7 {[%emt 0:00:37]
} 25. Bg5 {[%emt 0:00:02]} Rd7 {[%emt 0:00:20]} 26. Bf6 {[%emt 0:00:25]} Rd2 {
[%emt 0:00:43]} 27. Nf4 {[%emt 0:00:11]} Ne8 {[%emt 0:02:07]} 28. Bc3 {[%emt 0:
00:34]} Rd7 {[%emt 0:00:21]} 29. Nd3 {[%emt 0:00:04]} Bb6 {[%emt 0:00:14]} 30.
Ne5 {[%emt 0:00:16]} Rd6 {[%emt 0:00:37]} 31. Nc4 {[%emt 0:00:16]} Rd7 {[%emt
0:00:06]} 32. Nxb6 {[%emt 0:00:01]} axb6 {[%emt 0:00:01]} 33. Ra8 {[%emt 0:00:
03]} Kf8 {[%emt 0:00:33]} 34. Rb8 {[%emt 0:00:01]} Ke7 {[%emt 0:01:07]} 35.
Rxb6 {[%emt 0:00:16]} Rc7 {[%emt 0:00:23]} 36. Be5 {[%emt 0:00:37]} Nd6 {[%emt
0:00:16]} 37. g5 {[%emt 0:00:05]} Kd7 {[%emt 0:00:33]} 38. c4 {[%emt 0:00:09]}
Ra7 {[%emt 0:00:45]} 39. Rb8 {[%emt 0:00:48]} Ra5 {[%emt 0:00:34]} 40. Bf6 {
[%emt 0:00:23]} Ne8 {[%emt 0:00:25]} 41. Rd8+ {[%emt 0:00:03]} Kc7 {[%emt 0:00:
05]} 42. Rxe8 {[%emt 0:00:02]} Kd7 {[%emt 0:00:18]} 43. Re7+ {[%emt 0:00:06]}
Kd8 {[%emt 0:00:05]} 44. Ra7+ {[%emt 0:00:02]} 1-0

[Event "16th EWICC 2015"]
[Site "Kutaisi"]
[Date "2015.06.01"]
[Round "4"]
[White "Javakhishvili, Lela"]
[Black "Gaprindashvili, Nona"]
[Result "1-0"]
[ECO "A44"]
[WhiteElo "2472"]
[BlackElo "2302"]
[Annotator "Robot 11"]
[PlyCount "136"]
[EventDate "2015.??.??"]
[EventCountry "GEO"]
[TimeControl "900+10"]

1. d4 {[%emt 0:00:02]} c5 {[%emt 0:00:01]} 2. d5 {[%emt 0:00:03]} e5 {[%emt 0:
00:01]} 3. e4 {[%emt 0:00:05]} d6 {[%emt 0:00:02]} 4. Bb5+ {[%emt 0:00:17]} Nd7
{[%emt 0:00:06]} 5. a4 {[%emt 0:00:03]} g6 {[%emt 0:00:06]} 6. Nc3 {[%emt 0:00:
12]} Nh6 {[%emt 0:00:18]} 7. h4 {[%emt 0:00:16]} f6 {[%emt 0:00:12]} 8. h5 {
[%emt 0:00:32]} Bg7 {[%emt 0:01:05]} 9. Be3 {[%emt 0:00:34]} g5 {[%emt 0:01:57]
} 10. Nge2 {[%emt 0:00:43]} O-O {[%emt 0:01:39]} 11. Ng3 {[%emt 0:00:41]} Rf7 {
[%emt 0:00:04]} 12. Be2 {[%emt 0:00:11]} Nf8 {[%emt 0:00:04]} 13. Rb1 {[%emt 0:
01:02]} f5 {[%emt 0:00:46]} 14. exf5 {[%emt 0:00:03]} Nxf5 {[%emt 0:00:02]} 15.
h6 {[%emt 0:00:58]} Bh8 {[%emt 0:01:08]} 16. Nce4 {[%emt 0:00:20]} Nxe3 {[%emt
0:00:45]} 17. fxe3 {[%emt 0:00:03]} Ng6 {[%emt 0:00:04]} 18. Rh5 {[%emt 0:01:
18]} Bf6 {[%emt 0:03:30]} 19. Bg4 {[%emt 0:00:44]} Be7 {[%emt 0:04:41]} 20. Be6
{[%emt 0:01:40]} Bxe6 {[%emt 0:00:02]} 21. dxe6 {[%emt 0:00:02]} Rf8 {[%emt 0:
00:02]} 22. Qg4 {[%emt 0:00:14]} d5 {[%emt 0:00:26]} 23. Nxg5 {[%emt 0:00:19]}
Bxg5 {[%emt 0:00:03]} 24. Rxg5 {[%emt 0:00:04]} Qf6 {[%emt 0:00:24]} 25. Rf5 {
[%emt 0:00:31]} Qh4 {[%emt 0:00:26]} 26. Qxh4 {[%emt 0:00:39]} Nxh4 {[%emt 0:
00:01]} 27. Rxe5 {[%emt 0:00:29]} Rae8 {[%emt 0:00:36]} 28. Rd1 {[%emt 0:03:30]
} Ng6 {[%emt 0:00:15]} 29. Rf5 {[%emt 0:00:17]} Rxe6 {[%emt 0:00:34]} 30. Rxf8+
{[%emt 0:00:07]} Kxf8 {[%emt 0:00:02]} 31. Rxd5 {[%emt 0:00:22]} Rxe3+ {[%emt
0:00:02]} 32. Kf2 {[%emt 0:00:03]} Re5 {[%emt 0:00:32]} 33. Rd7 {[%emt 0:00:23]
} Re7 {[%emt 0:00:03]} 34. Rxe7 {[%emt 0:00:13]} Kxe7 {[%emt 0:00:01]} 35. Ne4
{[%emt 0:00:05]} b6 {[%emt 0:00:11]} 36. Ng5 {[%emt 0:00:12]} Nf8 {[%emt 0:00:
01]} 37. Ne4 {[%emt 0:00:56]} Nd7 {[%emt 0:00:23]} 38. Ke3 {[%emt 0:00:06]} Kf7
{[%emt 0:00:04]} 39. Nd6+ {[%emt 0:00:16]} Ke6 {[%emt 0:00:16]} 40. Nb5 {[%emt
0:00:07]} a5 {[%emt 0:00:22]} 41. Nc3 {[%emt 0:00:21]} Kf5 {[%emt 0:00:04]} 42.
Ne4 {[%emt 0:00:33]} Kg6 {[%emt 0:00:08]} 43. Nd6 {[%emt 0:00:26]} Kxh6 {[%emt
0:00:02]} 44. Ke4 {[%emt 0:00:01]} Kg5 {[%emt 0:00:11]} 45. Kd5 {[%emt 0:00:03]
} Kg4 {[%emt 0:00:16]} 46. Kc6 {[%emt 0:00:25]} Nf6 {[%emt 0:00:01]} 47. Kxb6 {
[%emt 0:00:10]} h5 {[%emt 0:00:05]} 48. Kxa5 {[%emt 0:00:06]} h4 {[%emt 0:00:
01]} 49. Kb6 {[%emt 0:00:13]} Nd5+ {[%emt 0:00:14]} 50. Kxc5 {[%emt 0:00:11]}
Ne3 {[%emt 0:00:01]} 51. a5 {[%emt 0:00:35]} Nxg2 {[%emt 0:00:02]} 52. a6 {
[%emt 0:00:23]} h3 {[%emt 0:00:03]} 53. a7 {[%emt 0:00:13]} h2 {[%emt 0:00:03]}
54. Ne4 {[%emt 0:00:33]} Kf3 {[%emt 0:00:17]} 55. Nd2+ {[%emt 0:00:31]} Ke2 {
[%emt 0:00:07]} 56. Ne4 {[%emt 0:00:14]} Kf3 {[%emt 0:00:04]} 57. a8=Q {[%emt
0:00:02]} h1=Q {[%emt 0:00:01]} 58. Nd6+ {[%emt 0:00:23]} Kf2 {[%emt 0:00:24]}
59. Qf8+ {[%emt 0:00:05]} Ke2 {[%emt 0:00:11]} 60. Qe7+ {[%emt 0:00:16]} Kd2 {
[%emt 0:00:13]} 61. c4 {[%emt 0:00:26]} Nf4 {[%emt 0:00:37]} 62. Qe4 {[%emt 0:
00:12]} Nd3+ {[%emt 0:00:06]} 63. Kb5 {[%emt 0:00:07]} Qh5+ {[%emt 0:00:03]}
64. Qd5 {[%emt 0:00:05]} Qe8+ {[%emt 0:00:05]} 65. Qc6 {[%emt 0:00:14]} Qb8+ {
[%emt 0:00:06]} 66. Qb6 {[%emt 0:00:12]} Qg8 {[%emt 0:00:14]} 67. b4 {[%emt 0:
00:11]} Qg4 {[%emt 0:00:30]} 68. Qc6 {[%emt 0:00:07]} Qf4 {[%emt 0:00:54]} 1-0

[Event "16th EWICC 2015"]
[Site "Kutaisi"]
[Date "2015.06.01"]
[Round "4"]
[White "Khmiadashvili, Tamar"]
[Black "Kostava, Elene"]
[Result "1-0"]
[ECO "D02"]
[WhiteElo "2043"]
[BlackElo "1691"]
[Annotator "Robot 11"]
[PlyCount "73"]
[EventDate "2015.??.??"]
[EventCountry "GEO"]
[TimeControl "900+10"]

1. d4 {[%emt 0:00:02]} d5 {[%emt 0:00:01]} 2. Nf3 {[%emt 0:00:02]} Nf6 {[%emt
0:00:02]} 3. b3 {[%emt 0:00:02]} e6 {[%emt 0:00:04]} 4. Bb2 {[%emt 0:00:01]} c5
{[%emt 0:00:02]} 5. e3 {[%emt 0:00:04]} Nc6 {[%emt 0:00:06]} 6. Nbd2 {[%emt 0:
00:06]} Bd6 {[%emt 0:00:31]} 7. Ne5 {[%emt 0:00:15]} O-O {[%emt 0:00:22]} 8. a3
{[%emt 0:00:14]} cxd4 {[%emt 0:00:16]} 9. exd4 {[%emt 0:00:06]} Qc7 {[%emt 0:
00:12]} 10. f4 {[%emt 0:00:22]} Nd7 {[%emt 0:00:16]} 11. Bd3 {[%emt 0:01:12]}
Qb6 {[%emt 0:02:13]} 12. Nxc6 {[%emt 0:02:20]} bxc6 {[%emt 0:00:19]} 13. O-O {
[%emt 0:00:45]} c5 {[%emt 0:00:05]} 14. Kh1 {[%emt 0:00:55]} cxd4 {[%emt 0:00:
25]} 15. Nf3 {[%emt 0:00:24]} Bxf4 {[%emt 0:01:07]} 16. Nxd4 {[%emt 0:00:35]}
Bh6 {[%emt 0:02:43]} 17. a4 {[%emt 0:01:31]} Nc5 {[%emt 0:00:41]} 18. a5 {
[%emt 0:00:09]} Qc7 {[%emt 0:00:53]} 19. Nb5 {[%emt 0:00:20]} Qc6 {[%emt 0:01:
00]} 20. Be2 {[%emt 0:00:49]} Ne4 {[%emt 0:01:18]} 21. Nd4 {[%emt 0:00:22]} Qc7
{[%emt 0:00:49]} 22. Bd3 {[%emt 0:00:47]} Nd6 {[%emt 0:01:08]} 23. Qh5 {[%emt
0:00:55]} Ne4 {[%emt 0:01:33]} 24. Nb5 {[%emt 0:01:05]} Qd7 {[%emt 0:00:24]}
25. Ba3 {[%emt 0:00:59]} Re8 {[%emt 0:00:57]} 26. Rad1 {[%emt 0:00:19]} a6 {
[%emt 0:01:04]} 27. Bxe4 {[%emt 0:00:35]} axb5 {[%emt 0:00:06]} 28. Bb4 {[%emt
0:00:14]} Qc7 {[%emt 0:00:27]} 29. Bd3 {[%emt 0:00:07]} Bb7 {[%emt 0:00:11]}
30. Bxb5 {[%emt 0:00:25]} Rec8 {[%emt 0:00:09]} 31. Bd3 {[%emt 0:00:05]} Qd7 {
[%emt 0:00:08]} 32. Rf3 {[%emt 0:00:19]} d4 {[%emt 0:00:17]} 33. Rg3 {[%emt 0:
00:02]} Kh8 {[%emt 0:00:06]} 34. Rf1 {[%emt 0:00:11]} f6 {[%emt 0:00:13]} 35.
Bd2 {[%emt 0:00:37]} Qc7 {[%emt 0:00:25]} 36. Bxh6 {[%emt 0:00:10]} Rxa5 {
[%emt 0:00:01]} 37. Bxg7+ {[%emt 0:00:28]} 1-0

[Event "16th EWICC 2015"]
[Site "Kutaisi"]
[Date "2015.06.01"]
[Round "4"]
[White "Mammadova, Narmin"]
[Black "Khurtsidze, Nino"]
[Result "1-0"]
[ECO "B00"]
[WhiteElo "2117"]
[BlackElo "2451"]
[Annotator "Robot 11"]
[PlyCount "63"]
[EventDate "2015.??.??"]
[EventCountry "GEO"]
[TimeControl "900+10"]

1. e4 {[%emt 0:00:02]} d6 {[%emt 0:00:01]} 2. d4 {[%emt 0:00:03]} g6 {[%emt 0:
00:01]} 3. Bd3 {[%emt 0:00:06]} Bg7 {[%emt 0:00:02]} 4. c3 {[%emt 0:00:05]} Nd7
{[%emt 0:00:03]} 5. Nf3 {[%emt 0:00:05]} b6 {[%emt 0:00:01]} 6. O-O {[%emt 0:
00:14]} Bb7 {[%emt 0:00:02]} 7. Qe2 {[%emt 0:00:32]} e6 {[%emt 0:00:11]} 8. d5
{[%emt 0:00:44]} e5 {[%emt 0:00:23]} 9. c4 {[%emt 0:00:06]} Ne7 {[%emt 0:00:03]
} 10. Nc3 {[%emt 0:00:01]} O-O {[%emt 0:00:05]} 11. Bd2 {[%emt 0:00:12]} a5 {
[%emt 0:00:07]} 12. h3 {[%emt 0:01:12]} Nc5 {[%emt 0:00:07]} 13. Bc2 {[%emt 0:
00:01]} f5 {[%emt 0:00:22]} 14. exf5 {[%emt 0:00:23]} Nxf5 {[%emt 0:00:15]} 15.
Ne4 {[%emt 0:00:11]} h6 {[%emt 0:00:18]} 16. Nxc5 {[%emt 0:00:26]} bxc5 {[%emt
0:00:04]} 17. Qe4 {[%emt 0:00:04]} Qf6 {[%emt 0:00:34]} 18. Bc3 {[%emt 0:01:35]
} Bc8 {[%emt 0:00:13]} 19. Nh2 {[%emt 0:03:02]} h5 {[%emt 0:03:21]} 20. Nf3 {
[%emt 0:00:17]} Ne7 {[%emt 0:00:07]} 21. Nh4 {[%emt 0:01:25]} Kh7 {[%emt 0:00:
14]} 22. Rae1 {[%emt 0:01:17]} Bh6 {[%emt 0:00:19]} 23. a4 {[%emt 0:02:37]} Bd7
{[%emt 0:00:21]} 24. Rd1 {[%emt 0:00:21]} Qf4 {[%emt 0:02:57]} 25. Nxg6 {[%emt
0:00:18]} Qxe4 {[%emt 0:00:02]} 26. Nxf8+ {[%emt 0:00:04]} Bxf8 {[%emt 0:00:07]
} 27. Bxe4+ {[%emt 0:00:01]} Kg7 {[%emt 0:00:00]} 28. f4 {[%emt 0:00:13]} Bxa4
{[%emt 0:00:03]} 29. Ra1 {[%emt 0:00:08]} Bb3 {[%emt 0:00:02]} 30. fxe5 {[%emt
0:00:05]} dxe5 {[%emt 0:00:05]} 31. Bxe5+ {[%emt 0:00:02]} Kg8 {[%emt 0:00:09]}
32. d6 {[%emt 0:00:45]} 1-0

[Event "16th EWICC 2015"]
[Site "Kutaisi"]
[Date "2015.06.01"]
[Round "4"]
[White "Mammadzada, Gunay"]
[Black "Choladze, Tea"]
[Result "1-0"]
[ECO "B76"]
[WhiteElo "2336"]
[BlackElo "1755"]
[Annotator "Robot 11"]
[PlyCount "61"]
[EventDate "2015.??.??"]
[EventCountry "GEO"]
[TimeControl "900+10"]

1. e4 {[%emt 0:00:01]} c5 2. Nf3 d6 {[%emt 0:00:04]} 3. d4 {[%emt 0:00:02]}
cxd4 4. Nxd4 Nf6 {[%emt 0:00:03]} 5. Nc3 {[%emt 0:00:03]} g6 {[%emt 0:00:03]}
6. Be3 Bg7 7. f3 {[%emt 0:00:04]} O-O {[%emt 0:00:03]} 8. Qd2 {[%emt 0:00:02]}
Nc6 {[%emt 0:00:02]} 9. O-O-O {[%emt 0:00:02]} d5 10. exd5 Nxd5 11. Nxc6 bxc6
12. Bd4 e5 13. Bc5 Be6 14. Ne4 f5 15. Ng5 Bh6 16. h4 Re8 17. Kb1 Qf6 18. Bc4
Rad8 19. Bb3 Nc7 20. Qa5 Bxb3 21. Qxc7 Bxa2+ 22. Kxa2 Bg7 23. Be7 Rxe7 24.
Rxd8+ Bf8 25. Rd7 h6 26. Rxe7 Bxe7 27. Qc8+ Kg7 28. Ne6+ Kf7 29. Nc7 Qd6 30. h5
Bd8 31. hxg6+ 1-0